bitfinex-derivatives/quotes_BNBF0:USTF0_20250710
["timestamp","ask_amount","ask_price","bid_price","bid_amount"]
[1752119511269,0.25956396,670.62,669.93,1.6768322]
[1752119511570,0.25956396,670.62,669.99,1.6768322]
[1752119512265,0.25956396,670.62,669.98,1.6768322]
[1752119513070,0.25956396,670.62,670.0,1.6768322]
[1752119513270,0.25956396,670.62,670.08,1.6768322]
[1752119514267,0.25956396,670.62,669.83,2.107]
[1752119514268,0.25956396,670.62,670.07,1.6768322]
[1752119514471,0.25956396,670.62,670.1,1.6768322]
[1752119514970,0.25956396,670.62,670.11,1.6768322]
[1752119515372,0.25956396,670.62,670.1,1.6768322]
[1752119516669,0.25956396,670.62,670.11,1.6768322]
[1752119517270,0.25956396,670.62,670.1,1.6768322]
[1752119517474,0.25956396,670.62,670.11,1.6768322]
[1752119518271,0.25956396,670.62,670.1,1.6768322]
[1752119518476,0.25956396,670.62,670.12,1.6768322]
[1752119519172,0.25956396,670.62,670.11,1.6768322]
[1752119522379,0.25956396,670.62,670.1,1.6768322]
[1752119522578,0.25956396,670.62,669.98,2.2373399]
[1752119522778,0.25956396,670.62,670.1,1.6711146]
[1752119526682,0.25956396,670.62,670.11,1.6711146]
[1752119527985,0.25956396,670.62,670.1,1.6711146]
[1752119528385,0.25956396,670.62,670.09,1.6711146]
[1752119533884,0.25956396,670.62,670.08,1.6711146]
[1752119537991,0.25956396,670.62,670.09,1.6711146]
[1752119540000,0.25956396,670.62,670.1,1.6711146]
[1752119540199,0.25956396,670.62,670.03,1.6711146]
[1752119540900,0.25956396,670.62,669.99,1.6711146]
[1752119541501,0.25956396,670.62,669.98,1.6711146]
[1752119542000,0.25956396,670.62,669.97,1.6711146]
[1752119546302,0.25956396,670.62,669.98,1.6711146]
[1752119550109,0.25956396,670.62,670.02,1.6711146]
[1752119551511,0.25956396,670.62,670.03,1.6711146]
[1752119551807,0.25956396,670.62,670.05,1.6711146]
[1752119552110,0.25956396,670.62,670.07,1.6711146]
[1752119552407,0.25956396,670.62,670.08,1.6711146]
[1752119552911,0.25956396,670.62,670.06,1.6711146]
[1752119553613,0.25956396,670.62,670.04,1.6711146]
[1752119553812,0.25956396,670.62,669.96,1.6711146]
[1752119554311,0.25956396,670.62,669.97,1.6711146]
[1752119554810,0.25956396,670.62,669.94,1.6711146]
[1752119557213,0.25956396,670.62,669.95,1.6711146]
[1752119558515,0.25956396,670.62,669.96,2.382]
[1752119563415,0.25956396,670.62,669.96,4.0531146]
[1752119564722,0.25956396,670.62,669.98,1.6711146]
[1752119565021,0.25956396,670.62,669.96,2.382]
[1752119565022,0.25956396,670.62,669.96,4.0531146]
[1752119565624,0.25956396,670.62,669.96,2.382]
[1752119566320,0.25956396,670.62,669.96,4.0531146]
[1752119569330,0.25956396,670.62,669.97,1.6711146]
[1752119574732,0.25956396,670.62,669.98,1.6711146]
[1752119575531,0.25956396,670.62,670.0,1.6711146]
[1752119575731,0.25956396,670.62,669.99,1.6711146]
[1752119579236,0.25956396,670.62,669.97,1.6711146]
[1752119579943,0.25956396,670.62,669.98,1.6711146]
[1752119580142,0.25956396,670.62,669.99,1.6711146]
[1752119580842,0.25956396,670.62,669.98,1.6711146]
[1752119581442,0.25956396,670.62,669.99,1.6711146]
[1752119582844,0.25956396,670.62,669.97,1.6711146]
[1752119585044,0.25956396,670.62,669.98,2.423]
[1752119585649,0.25956396,670.62,669.98,4.0941146]
[1752119585849,0.25956396,670.62,669.98,2.423]
[1752119593252,0.25956396,670.62,669.98,4.0941146]
[1752119593956,0.25956396,670.62,669.98,2.423]
[1752119598054,0.25956396,670.62,669.97,1.6711146]
[1752119598856,0.25956396,670.62,669.81,2.2373399]
[1752119599059,0.25956396,670.62,669.97,1.67505408]
[1752119599961,0.25956396,670.62,669.98,1.67505408]
[1752119600757,0.25956396,670.62,669.99,1.67505408]
[1752119601061,0.25956396,670.62,669.99,3.82005408]
[1752119602562,0.25956396,670.62,669.99,2.145]
[1752119603759,0.25956396,670.62,669.99,3.82005408]
[1752119603964,0.25956396,670.62,670.0,1.67505408]
[1752119604667,0.25956396,670.62,670.01,1.67505408]
[1752119605366,0.25956396,670.62,670.02,1.67505408]
[1752119607863,0.25956396,670.62,670.01,1.67505408]
[1752119608367,0.25956396,670.62,670.02,1.67505408]
[1752119608567,0.25956396,670.62,670.01,1.67505408]
[1752119610162,0.25956396,670.62,670.02,1.67505408]
[1752119610669,0.25956396,670.62,669.99,2.145]
[1752119610670,0.25956396,670.62,670.01,1.67505408]
[1752119610869,0.25956396,670.62,669.99,2.145]
[1752119616073,0.25956396,670.62,669.92,1.67505408]
[1752119618171,0.25956396,670.62,669.91,1.67505408]
[1752119619480,0.25956396,670.62,669.92,1.968]
[1752119620678,0.25956396,670.62,669.97,1.67505408]
[1752119626581,0.25956396,670.62,670.01,1.67505408]
[1752119627138,0.25956396,670.62,670.02,1.67505408]
[1752119628080,2.49083086,670.62,670.04,1.67505408]
[1752119628381,0.25956396,670.62,670.04,1.67505408]
[1752119631379,0.25956396,670.62,669.92,1.968]
[1752119631380,2.49083086,670.62,670.05,1.67505408]
[1752119631883,0.25956396,670.62,670.04,1.67505408]
[1752119632980,2.49083086,670.62,670.05,1.67505408]
[1752119633787,0.25956396,670.62,670.04,1.67505408]
[1752119634483,0.25956396,670.62,670.03,1.67505408]
[1752119635786,0.25956396,670.62,670.04,1.67505408]
[1752119636685,2.49083086,670.62,670.04,1.67505408]
[1752119636889,0.25956396,670.62,670.04,1.67505408]
[1752119641592,2.49083086,670.62,670.04,1.67505408]
[1752119641798,2.49083086,670.62,670.05,1.67505408]
[1752119642194,0.25956396,670.62,670.03,1.67505408]
[1752119643599,0.25956396,670.62,670.02,1.67505408]
[1752119643795,0.25956396,670.62,670.03,1.67505408]
[1752119646701,0.25956396,670.62,670.04,1.67505408]
[1752119647199,0.25956396,670.62,670.03,1.67505408]
[1752119647898,0.25956396,670.62,670.02,1.67505408]
[1752119651902,0.25956396,670.62,669.92,1.968]
[1752119651903,0.25956396,670.62,670.03,1.67505408]
[1752119652600,0.25956396,670.62,669.92,1.968]
[1752119655308,0.25956396,670.62,670.04,1.6776966]
[1752119657102,0.25956396,670.62,670.05,1.6776966]
[1752119657606,0.25956396,670.62,670.04,1.6776966]
[1752119657905,2.48820686,670.62,670.05,1.6776966]
[1752119658603,2.2286429,670.61,670.06,1.6776966]
[1752119658905,2.2286429,670.6,670.06,1.6776966]
[1752119659306,2.2286429,670.6,670.07,1.6776966]
[1752119659506,2.2286429,670.6,670.06,1.6776966]
[1752119660403,2.2286429,670.6,670.07,1.6776966]
[1752119660902,0.25956396,670.62,670.06,1.6776966]
[1752119660903,2.2286429,670.61,670.06,1.6776966]
[1752119665607,2.2286429,670.6,670.06,1.6776966]
[1752119665911,2.2286429,670.61,670.06,1.6776966]
[1752119666108,0.25956396,670.62,670.04,1.6776966]
[1752119668913,0.25956396,670.62,670.02,1.6776966]
[1752119670714,0.25956396,670.62,670.03,1.6776966]
[1752119671211,0.25956396,670.62,670.02,1.6776966]
[1752119673613,0.25956396,670.62,670.01,1.6776966]
[1752119675113,0.25956396,670.62,670.0,1.6776966]
[1752119675817,0.25956396,670.62,670.01,1.6776966]
[1752119677019,0.25956396,670.62,670.0,1.6776966]
[1752119678618,0.25956396,670.62,670.01,1.6776966]
[1752119679521,0.25956396,670.62,670.02,1.606]
[1752119681222,0.25956396,670.62,670.02,3.28400566]
[1752119681624,0.25956396,670.62,670.02,1.606]
[1752119683520,0.25956396,670.62,670.02,3.28400566]
[1752119684624,0.25956396,670.62,670.02,1.606]
[1752119694028,0.25956396,670.62,670.02,3.28400566]
[1752119694533,0.25956396,670.62,670.05,1.67800566]
[1752119696929,2.48820686,670.62,670.07,1.67800566]
[1752119697334,0.25956396,670.62,670.07,1.67800566]
[1752119698230,0.25956396,670.62,670.06,1.67800566]
[1752119698430,0.25956396,670.62,670.07,1.67800566]
[1752119700030,2.48820686,670.62,670.07,1.67800566]
[1752119700232,0.25956396,670.62,670.05,1.67800566]
[1752119700535,0.25956396,670.62,670.06,1.67800566]
[1752119700732,0.25956396,670.62,670.02,1.606]
[1752119700930,0.25956396,670.62,670.1,1.67768749]
[1752119701532,0.25956396,670.62,670.09,1.67768749]
[1752119702437,0.25956396,670.62,670.08,1.67768749]
[1752119702637,0.25956396,670.62,670.09,1.67768749]
[1752119704233,2.2286429,670.69,670.09,1.67768749]
[1752119704534,0.25957461,670.49,670.09,1.67768749]
[1752119705338,0.25957461,670.49,670.1,1.838]
[1752119745867,0.25957461,670.49,670.11,1.6762354]
[1752119746170,0.25957461,670.49,670.1,3.5142354]
[1752119746468,0.25957461,670.49,670.1,1.838]
[1752119747270,0.25957461,670.49,670.1,3.5142354]
[1752119749772,0.25957461,670.49,670.1,1.838]
[1752119755377,0.25957461,670.49,670.03,1.6762354]
[1752119757472,0.25957461,670.49,669.68,0.25958332]
[1752119757473,0.25957461,670.49,670.04,1.6762354]
[1752119758275,0.25957461,670.49,670.05,1.6762354]
[1752119758874,0.25957461,670.49,670.06,2.297]
[1752119759675,0.25957461,670.49,670.07,1.6762354]
[1752119760478,0.25957461,670.49,670.06,2.297]
[1752119775096,0.25957461,670.49,670.06,3.9747968]
[1752119777298,0.25957461,670.49,670.06,2.297]
[1752119777699,0.25957461,670.49,670.09,1.6777968]
[1752119778099,0.25957461,670.49,670.08,1.6777968]
[1752119782803,0.25957461,670.49,670.11,1.6777968]
[1752119785405,0.25957461,670.49,670.06,2.297]
[1752119785406,2.2286429,670.66,670.12,1.6777968]
[1752119785609,0.25956203,670.56,670.12,1.6777968]
[1752119785808,0.25956203,670.56,670.15,1.6777968]
[1752119786111,2.2286429,670.74,670.2,1.6777968]
[1752119786406,0.25954073,670.64,670.2,1.6777968]
[1752119786610,0.25954073,670.64,670.19,1.6777968]
[1752119787311,0.25954073,670.64,670.18,1.6777968]
[1752119788010,0.25954073,670.64,670.19,1.6777968]
[1752119789207,0.25954073,670.64,670.2,1.6777968]
[1752119789414,0.25954073,670.64,670.19,1.6777968]
[1752119791618,0.25954073,670.64,670.2,1.6777968]
[1752119792713,0.25954073,670.64,670.19,1.6777968]
[1752119795317,0.25954073,670.64,670.06,4.5339288]
[1752119795318,0.25954073,670.64,670.18,1.6777968]
[1752119795616,0.25954073,670.64,670.2,1.6777968]
[1752119796316,0.25954073,670.64,670.19,1.6777968]
[1752119797520,0.25954073,670.64,670.18,1.6777968]
[1752119799521,0.25954073,670.64,670.09,1.6777968]
[1752119799724,0.25954073,670.64,670.15,1.6777968]
[1752119800419,0.25954073,670.64,670.14,1.6777968]
[1752119803421,0.25954073,670.64,670.13,1.6777968]
[1752119805728,0.25954073,670.64,670.12,1.6777968]
[1752119808430,0.25954073,670.64,670.11,1.6777968]
[1752119809034,0.25954073,670.64,670.12,1.6777968]
[1752119809535,0.25954073,670.64,670.17,1.6777968]
[1752119811633,0.25954073,670.64,670.16,1.6777968]
[1752119813840,0.25954073,670.64,670.17,2.487]
[1752119815237,0.25954073,670.64,670.17,4.1647968]
[1752119815540,0.25954073,670.64,670.17,2.487]
[1752119815739,0.25954073,670.64,670.19,1.6721096]
[1752119816440,0.25954073,670.64,670.2,1.6721096]
[1752119816937,0.25954073,670.64,670.19,1.6721096]
[1752119818437,0.25954073,670.64,670.17,2.487]
[1752119821543,0.25954073,670.64,670.17,4.1591096]
[1752119821843,0.25954073,670.64,670.17,2.487]
[1752119826646,0.25954073,670.64,670.17,4.1591096]
[1752119826844,0.25954073,670.64,670.17,2.487]
[1752119827848,0.25954073,670.64,670.16,1.6721096]
[1752119828251,0.25954073,670.64,670.18,1.6721096]
[1752119831554,0.25954073,670.64,670.19,2.681]
[1752119831850,0.25954073,670.64,670.19,4.3531096]
[1752119832449,0.25954073,670.64,670.19,2.681]
[1752119836759,0.25954073,670.64,670.2,1.6721096]
[1752119837255,0.25954073,670.64,670.21,1.6721096]
[1752119837759,0.25954073,670.64,670.2,1.6721096]
[1752119838355,0.25954073,670.64,670.19,4.3531096]
[1752119838554,0.25954073,670.64,670.2,1.6721096]
[1752119839156,2.2286429,670.9,670.2,1.6721096]
[1752119839656,2.2286429,670.89,670.2,1.6721096]
[1752119839959,2.2286429,670.9,670.2,1.6721096]
[1752119840258,2.2286429,670.89,670.2,1.6721096]
[1752119841455,2.2286429,670.89,670.21,1.6721096]
[1752119841956,2.2286429,670.89,670.21,1.6738896]
[1752119842160,2.2286429,670.9,670.2,1.6738896]
[1752119842356,5.5716073,671.58,670.21,1.6738896]
[1752119842357,2.2286429,670.88,670.21,1.6738896]
[1752119842759,2.2286429,670.89,670.21,1.6738896]
[1752119843759,2.2286429,670.92,670.19,4.3548896]
[1752119844062,2.2286429,670.92,670.19,2.681]
[1752119844660,2.2286429,670.91,670.19,4.3548896]
[1752119845460,2.2286429,670.91,670.19,2.681]
[1752119845663,2.2286429,670.91,670.2,1.6751875]
[1752119846463,2.2286429,670.9,670.2,1.6751875]
[1752119846663,2.2286429,670.91,670.2,1.6751875]
[1752119847562,0.25951944,670.74,670.2,1.6751875]
[1752119848465,0.25951944,670.74,670.21,1.6751875]
[1752119849261,0.25951944,670.74,670.21,1.6755017]
[1752119852168,0.25951944,670.74,670.22,1.6755017]
[1752119853667,0.25951944,670.74,670.24,1.6755017]
[1752119854873,0.25951944,670.74,670.25,1.6755017]
[1752119856074,0.25951944,670.74,670.24,1.6755017]
[1752119856673,0.25951944,670.74,670.25,1.6755017]
[1752119858377,0.25951944,670.74,670.26,1.6755017]
[1752119859478,0.25951944,670.74,670.27,1.6755017]
[1752119860277,0.25951944,670.74,670.26,1.6755017]
[1752119860773,0.25951944,670.74,670.27,1.6755017]
[1752119862580,0.25951944,670.74,670.28,1.6755017]
[1752119866683,0.25951944,670.74,670.27,1.6755017]
[1752119870282,0.25951944,670.74,670.28,1.6755017]
[1752119875790,0.25951944,670.74,670.29,1.6755017]
[1752119876290,0.25951944,670.74,670.3,1.6755017]
[1752119876888,0.25951944,670.74,670.29,1.6755017]
[1752119878292,0.25951944,670.74,670.19,2.681]
[1752119878690,0.25951944,670.74,669.82,0.25951944]
[1752119880994,0.25951944,670.74,670.28,1.6773]
[1752119881590,0.25951944,670.74,670.29,1.6773]
[1752119881894,0.25951944,670.74,670.28,1.6773]
[1752119882094,0.25951944,670.74,670.3,2.538]
[1752119912008,0.25951944,670.74,670.27,1.6774727]
[1752119912609,0.25951944,670.74,670.28,1.6774727]
[1752119914721,0.25951944,670.74,670.29,2.479]
[1752119916814,0.25951944,670.74,670.29,4.1564727]
[1752119917721,0.25951944,670.74,670.3,1.6774727]
[1752119919521,0.25951944,670.74,670.29,2.479]
[1752119938035,0.25951944,670.74,670.29,4.1564727]
[1752119939734,0.25951944,670.74,670.29,2.479]
[1752119951947,0.25951944,670.74,670.3,1.6764923]
[1752119952244,0.25951944,670.74,670.29,4.1554923]
[1752119954748,0.25951944,670.74,670.29,1.6764923]
[1752119955552,0.25951944,670.74,670.27,1.6764923]
[1752119955852,0.25951944,670.74,670.26,1.6764923]
[1752119957053,0.25951944,670.74,670.27,1.6764923]
[1752119957449,0.25951944,670.74,670.26,1.6764923]
[1752119957754,0.25951944,670.74,670.27,1.6764923]
[1752119958556,0.25951944,670.74,670.28,2.407]
[1752119958853,0.25951944,670.74,670.29,1.6764923]
[1752119959252,0.25951944,670.74,670.28,4.0834923]
[1752119959953,0.25951944,670.74,670.28,2.407]
[1752119965758,0.25951944,670.74,670.28,4.0834923]
[1752119969960,0.25951944,670.74,670.29,1.6764923]
[1752119971364,0.25951944,670.74,670.3,1.6764923]
[1752119972662,0.25951944,670.74,670.29,1.6764923]
[1752119973863,0.25951944,670.74,670.28,1.6764923]
[1752119974162,0.25951944,670.74,670.29,1.84]
[1752119982968,0.25951944,670.74,670.29,3.5164782]
[1752119983269,0.25951944,670.74,670.29,1.84]
[1752119984673,0.25951944,670.74,670.29,3.5164782]
[1752119984872,0.25951944,670.74,670.3,1.6764782]
[1752119985871,0.25951944,670.74,670.29,3.5164782]
[1752119990780,0.25951944,670.74,670.29,1.84]
[1752119992881,0.25951944,670.74,670.29,3.5164782]
[1752119993080,0.25951944,670.74,670.3,1.6764782]
[1752119994184,0.25951944,670.74,670.29,1.84]
[1752120000591,0.25951944,670.74,670.29,3.5164782]
[1752120001496,2.2314949,670.56,670.29,1.84]
[1752120001695,2.2314949,670.57,670.29,1.84]
[1752120002794,2.2314949,670.56,670.29,1.84]
[1752120003497,0.25951944,670.74,670.29,1.84]
[1752120003498,2.2314949,670.58,670.29,1.84]
[1752120004093,2.2314949,670.56,670.29,1.84]
[1752120005095,2.2314949,670.55,670.29,1.84]
[1752120007197,2.2314949,670.56,670.29,1.84]
[1752120008293,2.2314949,670.58,670.29,1.84]
[1752120008497,2.2314949,670.61,670.29,1.84]
[1752120008695,2.2314949,670.63,670.29,1.84]
[1752120008895,2.2314949,670.62,670.29,1.84]
[1752120009798,2.2314949,670.63,670.29,1.84]
[1752120010897,2.2314949,670.64,670.29,1.84]
[1752120011197,2.2314949,670.63,670.29,1.84]
[1752120012999,2.2314949,670.64,670.29,1.84]
[1752120013400,2.2314949,670.63,670.29,1.84]
[1752120013902,2.2314949,670.64,670.29,1.84]
[1752120014200,2.2314949,670.63,669.87,1.6767684]
[1752120014809,2.2314949,670.62,669.88,1.6767684]
[1752120016612,2.2314949,670.57,669.92,1.6767684]
[1752120016912,2.2314949,670.54,669.88,1.6767684]
[1752120017512,2.2314949,670.55,669.88,1.6767684]
[1752120017715,2.2314949,670.54,669.89,2.392]
[1752120020813,2.2314949,670.53,669.89,4.0687684]
[1752120021614,2.2314949,670.52,669.9,1.6767684]
[1752120022212,2.2314949,670.5,669.91,1.6767684]
[1752120022416,2.2314949,670.51,669.91,1.6767684]
[1752120023215,2.2314949,670.51,669.9,1.6767684]
[1752120024221,2.2314949,670.64,669.89,2.392]
[1752120024517,2.2314949,670.65,669.89,2.392]
[1752120024814,2.2314949,670.64,669.89,2.392]
[1752120025414,2.2314949,670.65,669.89,2.392]
[1752120026815,2.2314949,670.64,669.89,2.392]
[1752120027116,2.2314949,670.65,669.89,2.392]
[1752120031621,2.2314949,670.64,669.89,2.392]
[1752120032127,0.25951944,670.74,669.92,1.6767684]
[1752120032128,2.2314949,670.49,669.92,1.6767684]
[1752120032323,2.2314949,670.49,669.91,1.6767684]
[1752120032528,2.2314949,670.48,669.93,1.6767684]
[1752120032728,2.2314949,670.49,669.92,1.6767684]
[1752120032930,2.2314949,670.48,669.92,1.6767684]
[1752120033225,2.2314949,670.49,669.92,1.6767684]
[1752120033625,2.2314949,670.48,669.92,1.6767684]
[1752120033926,2.2314949,670.5,669.91,1.6767684]
[1752120034523,2.2314949,670.49,669.92,1.6767684]
[1752120034929,2.2314949,670.46,669.94,1.6767684]
[1752120035226,2.2314949,670.49,669.91,1.6767684]
[1752120035423,2.2314949,670.5,669.91,1.6767684]
[1752120036325,2.2314949,670.49,669.91,1.6767684]
[1752120037129,2.2314949,670.5,669.91,1.6767684]
[1752120037327,2.2314949,670.49,669.92,1.6767684]
[1752120038325,2.2314949,670.5,669.92,1.6767684]
[1752120038526,2.2314949,670.48,669.92,1.6767684]
[1752120039632,2.2314949,670.48,669.93,1.6767684]
[1752120039927,2.2314949,670.54,669.89,2.392]
[1752120041331,2.2314949,670.55,669.89,2.392]
[1752120043933,2.2314949,670.56,669.89,2.392]
[1752120044431,2.2314949,670.56,669.89,2.65157364]
[1752120046129,2.2314949,670.57,669.89,2.65157364]
[1752120046330,2.2314949,670.56,669.89,2.65157364]
[1752120046829,2.2314949,670.57,669.89,2.65157364]
[1752120049133,2.2314949,670.55,669.89,2.65157364]
[1752120049837,2.2314949,670.53,669.89,2.65157364]
[1752120050034,2.2314949,670.53,669.89,4.32740734]
[1752120050236,2.2314949,670.52,669.89,4.32740734]
[1752120051234,2.2314949,670.52,669.9,1.6758337]
[1752120051634,2.2314949,670.51,669.9,1.6758337]
[1752120051838,2.2314949,670.52,669.89,4.32740734]
[1752120052738,2.2314949,670.52,669.89,1.93540734]
[1752120052934,2.2314949,670.52,669.89,0.25957364]
[1752120053135,2.2314949,670.52,669.89,1.93546124]
[1752120053645,2.2314949,670.5,669.91,1.6758876]
[1752120055339,2.2314949,670.5,669.92,2.373]
[1752120056139,2.2314949,670.49,669.92,4.0488876]
[1752120056340,2.2314949,670.5,669.92,2.373]
[1752120056740,2.2314949,670.49,669.92,2.373]
[1752120057241,2.2314949,670.5,669.92,2.373]
[1752120060848,2.2314949,670.58,669.92,2.373]
[1752120061542,2.2314949,670.59,669.92,2.373]
[1752120061744,2.2314949,670.58,669.92,2.373]
[1752120062147,2.2314949,670.61,669.92,2.373]
[1752120067250,2.2314949,670.62,669.92,2.373]
[1752120069355,2.2314949,670.61,669.92,2.373]
[1752120070553,2.2314949,670.57,669.92,2.373]
[1752120070951,2.2314949,670.58,669.92,2.373]
[1752120072052,2.2314949,670.55,669.92,2.373]
[1752120076361,2.2314949,670.54,669.92,2.373]
[1752120077156,2.2314949,670.53,669.92,2.373]
[1752120077362,2.2314949,670.54,669.92,2.373]
[1752120077861,2.2314949,670.55,669.92,2.373]
[1752120080761,2.2314949,670.53,669.92,2.373]
[1752120081264,2.2314949,670.54,669.92,2.373]
[1752120081465,2.2314949,670.53,669.92,2.373]
[1752120081965,2.2314949,670.54,669.92,2.373]
[1752120083266,2.2314949,670.55,669.92,2.373]
[1752120084262,2.2314949,670.53,669.92,2.373]
[1752120086563,2.2314949,670.58,669.92,2.373]
[1752120086861,2.2314949,670.57,669.92,2.373]
[1752120087064,2.2314949,670.6,669.92,2.373]
[1752120087266,2.2314949,670.61,669.92,2.373]
[1752120089168,0.25957267,670.66,669.92,2.373]
[1752120089169,2.2314949,670.62,669.92,2.373]
[1752120089867,2.2314949,670.61,669.92,2.373]
[1752120090568,2.2314949,670.62,669.92,2.373]
[1752120093669,2.2314949,670.56,669.93,1.6758876]
[1752120096575,2.2314949,670.58,669.92,4.0488876]
[1752120097369,2.2314949,670.59,669.92,2.373]
[1752120101073,2.2314949,670.6,669.92,2.373]
[1752120102276,2.2314949,670.59,669.92,2.373]
[1752120102474,2.2314949,670.6,669.92,2.373]
[1752120103880,2.2314949,670.59,669.92,2.373]
[1752120104181,2.2314949,670.6,669.92,2.373]
[1752120104878,2.2314949,670.59,669.92,2.373]
[1752120105077,2.2314949,670.6,669.92,2.373]
[1752120105881,2.2314949,670.59,669.92,2.373]
[1752120106278,2.2314949,670.6,669.92,2.373]
[1752120106579,2.2314949,670.59,669.92,2.373]
[1752120107082,2.2314949,670.58,669.92,2.373]
[1752120109282,2.2314949,670.59,669.92,2.373]
[1752120109481,2.2314949,670.58,669.92,2.373]
[1752120110883,2.2314949,670.56,669.93,1.6758876]
[1752120111484,2.2314949,670.57,669.93,1.6758876]
[1752120111683,2.2314949,670.57,669.92,1.6758876]
[1752120114992,2.2314949,670.57,669.93,2.652]
[1752120115489,2.2314949,670.58,669.93,2.652]
[1752120115989,2.2314949,670.59,669.93,2.652]
[1752120118898,2.2314949,670.58,669.93,2.652]
[1752120119192,2.2314949,670.57,669.93,2.652]
[1752120120693,2.2314949,670.58,669.93,2.652]
[1752120122197,2.2314949,670.6,669.93,2.652]
[1752120123497,2.2314949,670.61,669.93,2.652]
[1752120123694,2.2314949,670.6,669.93,2.652]
[1752120124396,2.2314949,670.58,669.93,2.652]
[1752120125194,2.2314949,670.57,669.93,2.652]
[1752120125702,2.2314949,670.58,669.93,2.652]
[1752120125905,2.2314949,670.61,669.93,2.652]
[1752120126104,2.2314949,670.6,669.93,2.652]
[1752120126399,2.2314949,670.58,669.93,2.652]
[1752120126597,2.2314949,670.59,669.93,2.652]
[1752120130305,2.2314949,670.58,669.93,2.652]
[1752120130703,2.2314949,670.59,669.93,2.652]
[1752120131001,2.2314949,670.62,669.93,2.652]
[1752120131702,2.2314949,670.61,669.93,2.652]
[1752120134308,0.25957267,670.66,669.93,2.652]
[1752120134607,2.49106757,670.66,669.93,2.652]
[1752120134803,2.2314949,670.65,669.93,2.652]
[1752120136507,2.2314949,670.64,669.93,2.652]
[1752120139408,2.2314949,670.63,669.93,2.652]
[1752120140913,2.2314949,670.61,669.93,2.652]
[1752120142314,2.2314949,670.51,669.95,1.6758876]
[1752120144215,2.2314949,670.5,669.96,1.6758876]
[1752120145716,2.2314949,670.57,669.93,2.652]
[1752120146319,2.2314949,670.56,669.93,2.652]
[1752120146616,2.2314949,670.5,669.93,2.652]
[1752120147021,2.2314949,670.5,669.89,0.25957364]
[1752120147316,2.2314949,670.49,669.89,0.25957364]
[1752120148118,2.2314949,670.5,669.89,0.25957364]
[1752120150018,2.2314949,670.5,669.9,1.753]
[1752120150918,2.2314949,670.51,669.9,1.753]
[1752120154324,2.2314949,670.52,669.9,1.753]
[1752120154721,2.2314949,670.5,669.9,1.753]
[1752120155322,2.2314949,670.49,669.9,1.753]
[1752120155521,2.2314949,670.47,669.9,1.753]
[1752120155723,2.2314949,670.46,669.9,1.753]
[1752120155920,2.2314949,670.48,669.9,1.753]
[1752120156125,2.2314949,670.49,669.9,1.753]
[1752120156626,2.2314949,670.48,669.9,1.753]
[1752120157421,2.2314949,670.49,669.9,1.753]
[1752120158130,2.2314949,670.5,669.9,1.753]
[1752120159128,2.2314949,670.49,669.9,1.753]
[1752120161133,2.2314949,670.5,669.9,1.753]
[1752120165944,2.2314949,670.47,669.9,1.753]
[1752120166344,2.2314949,670.49,669.9,1.753]
[1752120166940,2.2314949,670.48,669.9,1.753]
[1752120167440,2.2314949,670.5,669.9,1.753]
[1752120168345,2.2314949,670.49,669.9,1.753]
[1752120170243,2.2314949,670.5,669.9,1.753]
[1752120170545,2.2314949,670.49,669.9,1.753]
[1752120171044,2.2314949,670.56,669.9,1.753]
[1752120174446,0.25957267,670.66,669.9,1.753]
[1752120174447,2.2314949,670.55,669.9,1.753]
[1752120174848,2.2314949,670.54,669.9,1.753]
[1752120175650,2.2314949,670.5,669.9,1.753]
[1752120176153,3.60681497,670.66,669.9,1.753]
[1752120176154,2.2314949,670.44,669.9,1.753]
[1752120178554,2.2314949,670.45,669.9,1.753]
[1752120179457,2.2314949,670.44,669.9,1.753]
[1752120181757,2.2314949,670.43,669.9,1.753]
[1752120184965,2.2314949,670.42,669.9,1.753]
[1752120185164,2.2314949,670.37,669.9,1.753]
[1752120185366,2.2314949,670.38,669.9,1.753]
[1752120186059,2.2314949,670.41,669.9,1.753]
[1752120187061,2.2314949,670.42,669.9,1.753]
[1752120189663,2.2314949,670.44,669.9,1.753]
[1752120189862,2.2314949,670.43,669.9,1.753]
[1752120190860,2.2314949,670.45,669.9,1.753]
[1752120191066,2.2314949,670.42,669.9,1.753]
[1752120191264,2.2314949,670.43,669.9,1.753]
[1752120193366,2.2314949,670.44,669.9,1.753]
[1752120194767,2.2314949,670.45,669.9,1.753]
[1752120195567,2.2314949,670.44,669.9,1.753]
[1752120195870,2.2314949,670.43,669.9,1.753]
[1752120196071,2.2314949,670.44,669.9,1.753]
[1752120199473,2.2314949,670.43,669.9,1.753]